bitfinex/quotes_BTCUSD_20250904
["timestamp","ask_amount","ask_price","bid_price","bid_amount"]
[1756963601851,0.03963549,110870.0,110860.0,0.34090997]
[1756963602070,0.03963549,110870.0,110860.0,0.43282596]
[1756963602930,0.46201278,110870.0,110860.0,0.43282596]
[1756963603360,0.03963549,110870.0,110860.0,0.43282596]
[1756963604091,0.002,110870.0,110860.0,0.43282596]
[1756963604492,0.03963549,110870.0,110860.0,0.43386146]
[1756963604887,0.76625234,110890.0,110860.0,0.43386146]
[1756963604888,0.0271125,110890.0,110860.0,0.45480028]
[1756963605091,0.03763549,110920.0,110910.0,0.18032639]
[1756963605290,0.03763549,110920.0,110910.0,0.49963238]
[1756963605793,0.03763549,110920.0,110910.0,0.34675238]
[1756963605991,0.22006562,110920.0,110910.0,0.16331599]
[1756963606190,0.22006562,110920.0,110910.0,0.34589645]
[1756963606401,0.7698278,110920.0,110910.0,0.16345906]
[1756963606572,0.84862252,110920.0,110910.0,0.16341906]
[1756963606774,1.18962252,110920.0,110910.0,0.00214307]
[1756963607185,1.21430252,110920.0,110910.0,0.00214307]
[1756963607710,1.21330252,110920.0,110910.0,0.00214307]
[1756963608572,1.21330252,110920.0,110910.0,0.00014307]
[1756963608931,1.21430252,110920.0,110910.0,0.00214307]
[1756963609239,1.1385678,110920.0,110910.0,0.00014307]
[1756963609479,1.1375678,110920.0,110910.0,0.00014307]
[1756963609816,1.1365678,110920.0,110910.0,0.00014307]
[1756963610182,1.23048379,110920.0,110910.0,0.15398307]
[1756963610322,1.23048379,110920.0,110910.0,0.00114307]
[1756963610542,1.32239978,110920.0,110910.0,0.00114307]
[1756963612746,1.34950741,110920.0,110910.0,0.00114307]
[1756963613566,1.58103986,110920.0,110910.0,0.00114307]
[1756963614188,1.77493293,110920.0,110910.0,0.00114307]
[1756963615014,1.77393293,110920.0,110910.0,0.00114307]
[1756963615430,0.97835021,110890.0,110880.0,0.15284]
[1756963615569,1.0754462,110890.0,110880.0,0.15298215]
[1756963615938,1.0723862,110890.0,110880.0,0.15502215]
[1756963616172,0.98047021,110890.0,110880.0,0.15502215]
[1756963616384,0.97835021,110890.0,110880.0,0.15502215]
[1756963616756,0.97935021,110890.0,110880.0,0.15602215]
[1756963617033,0.97935021,110890.0,110880.0,0.15827683]
[1756963617210,1.03241967,110890.0,110880.0,0.15913215]
[1756963617369,1.03341967,110890.0,110880.0,0.16013215]
[1756963618107,1.32035021,110890.0,110880.0,0.16013215]
[1756963619488,1.32247021,110890.0,110880.0,0.00418215]
[1756963619695,1.32553021,110890.0,110880.0,0.15498215]
[1756963620237,1.32553021,110890.0,110880.0,0.15702215]
[1756963620547,1.32247021,110890.0,110880.0,0.15702215]
[1756963620791,1.32035021,110890.0,110880.0,0.16238683]
[1756963620994,1.32035021,110890.0,110880.0,0.34276201]
[1756963621159,1.32035021,110890.0,110880.0,0.34050733]
[1756963621558,1.32035021,110890.0,110880.0,0.16013215]
[1756963621766,1.40924718,110890.0,110880.0,0.16238683]
[1756963621948,1.41136718,110890.0,110880.0,0.00418215]
[1756963622149,1.41136718,110890.0,110880.0,0.15702215]
[1756963622758,1.40924718,110890.0,110880.0,0.16013215]
[1756963623438,1.41136718,110890.0,110880.0,0.00418215]
[1756963623618,1.41442718,110890.0,110880.0,0.15498215]
[1756963625279,1.41442718,110890.0,110880.0,0.00214215]
[1756963625637,1.41442718,110890.0,110880.0,0.15494215]
[1756963626044,1.41442718,110890.0,110880.0,0.15597765]
[1756963626371,1.41442718,110890.0,110880.0,0.00317765]
[1756963626531,1.41442718,110890.0,110880.0,0.15597765]
[1756963627341,1.43810718,110890.0,110880.0,0.15597765]
[1756963631116,1.43810718,110890.0,110880.0,0.00317765]
[1756963633109,1.59090718,110890.0,110880.0,0.00317765]
[1756963642015,1.58990718,110890.0,110880.0,0.00117765]
[1756963642223,1.58890718,110890.0,110880.0,0.00117765]
[1756963642391,1.58990718,110890.0,110880.0,0.00217765]
[1756963642605,1.59190718,110890.0,110880.0,0.00217765]
[1756963645492,1.95798171,110890.0,110880.0,0.00217765]
[1756963645973,2.0498977,110890.0,110880.0,0.00217765]
[1756963649438,1.8970977,110890.0,110880.0,0.00217765]
[1756963649618,2.0498977,110890.0,110880.0,0.00217765]
[1756963652885,1.8970977,110890.0,110880.0,0.00217765]
[1756963653089,2.0498577,110890.0,110880.0,0.00217765]
[1756963653718,1.8734177,110890.0,110880.0,0.00417765]
[1756963653897,2.0261777,110890.0,110880.0,0.00417765]
[1756963654881,1.8734177,110890.0,110880.0,0.00417765]
[1756963655107,0.52335891,110890.0,110880.0,0.00737765]
[1756963655286,0.78420957,110890.0,110880.0,0.00737765]
[1756963655625,0.78420957,110890.0,110880.0,0.16013765]
[1756963655828,1.12420957,110890.0,110880.0,0.16013765]
[1756963657766,0.38063549,110890.0,110880.0,0.34276751]
[1756963657947,0.94385066,110890.0,110880.0,0.34051283]
[1756963658853,1.12420957,110890.0,110880.0,0.34051283]
[1756963659433,0.94385066,110890.0,110880.0,0.34051283]
[1756963660144,1.12420957,110890.0,110880.0,0.34051283]
[1756963661250,0.94385066,110890.0,110880.0,0.34051283]
[1756963661673,1.21612556,110890.0,110880.0,0.00737765]
[1756963661876,0.65291039,110890.0,110880.0,0.15689765]
[1756963662074,1.21612556,110890.0,110880.0,0.15990765]
[1756963662313,1.21612556,110890.0,110880.0,0.34253751]
[1756963662314,0.94385066,110890.0,110880.0,0.34253751]
[1756963662512,0.94385066,110890.0,110880.0,0.34028283]
[1756963662757,0.38063549,110890.0,110880.0,0.34028283]
[1756963662961,0.94385066,110890.0,110880.0,0.34028283]
[1756963664565,0.38063549,110890.0,110880.0,0.43219882]
[1756963664952,0.04063549,110890.0,110880.0,0.43219882]
[1756963666098,0.003,110890.0,110880.0,0.43219882]
[1756963666487,0.04063549,110890.0,110880.0,0.43219882]
[1756963669007,0.003,110890.0,110880.0,0.43219882]
[1756963669589,0.04063549,110890.0,110880.0,0.43219882]
[1756963669970,0.003,110890.0,110880.0,0.43219882]
[1756963670838,0.04063549,110890.0,110880.0,0.43219882]
[1756963671064,0.04063549,110890.0,110880.0,0.43215882]
[1756963671467,0.2209944,110890.0,110880.0,0.43215882]
[1756963671669,0.2260944,110890.0,110880.0,0.42714882]
[1756963671849,0.78930957,110890.0,110880.0,0.42714882]
[1756963672051,0.2230244,110890.0,110880.0,0.42925882]
[1756963672541,0.2230244,110890.0,110880.0,0.27657882]
[1756963672747,0.2230244,110890.0,110880.0,0.42925882]
[1756963673779,0.78623957,110890.0,110880.0,0.42925882]
[1756963674558,0.78420957,110890.0,110880.0,0.43226882]
[1756963675477,0.64316441,110890.0,110880.0,0.43226882]
[1756963675673,0.64316441,110890.0,110880.0,0.42925882]
[1756963677525,0.64519441,110890.0,110880.0,0.42925882]
[1756963677739,0.64316441,110890.0,110880.0,0.43226882]
[1756963679552,0.4628055,110890.0,110880.0,0.43226882]
[1756963679999,0.64316441,110890.0,110880.0,0.43222882]
[1756963680176,0.4628055,110890.0,110880.0,0.43222882]
[1756963680530,0.64316441,110890.0,110880.0,0.27958882]
[1756963680721,0.64316441,110890.0,110880.0,0.42921882]
[1756963681363,0.4628055,110890.0,110880.0,0.42921882]
[1756963682715,0.04063549,110890.0,110880.0,0.43222882]
[1756963682923,0.003,110890.0,110880.0,0.85439883]
[1756963683133,0.04063549,110890.0,110880.0,0.43222882]
[1756963684297,0.4628055,110890.0,110880.0,0.43222882]
[1756963685699,0.64519441,110890.0,110880.0,0.42921882]
[1756963685912,0.64826441,110890.0,110880.0,0.42921882]
[1756963686124,0.4648355,110890.0,110880.0,0.42921882]
[1756963686545,0.64826441,110890.0,110880.0,0.42710882]
[1756963686942,0.4679055,110890.0,110880.0,0.42710882]
[1756963687160,0.4679055,110890.0,110880.0,0.42921882]
[1756963687579,0.04573549,110890.0,110880.0,0.42921882]
[1756963687853,0.4648355,110890.0,110880.0,0.42921882]
[1756963688764,0.4679055,110890.0,110880.0,0.42710882]
[1756963688976,0.4679055,110890.0,110880.0,0.42921882]
[1756963689760,0.64826441,110890.0,110880.0,0.27657882]
[1756963689966,0.64826441,110890.0,110880.0,0.42710882]
[1756963690171,0.64826441,110890.0,110880.0,0.27446882]
[1756963690587,0.64826441,110890.0,110880.0,0.42710882]
[1756963690803,0.04573549,110890.0,110880.0,0.42710882]
[1756963691005,0.4679055,110890.0,110880.0,0.42710882]
[1756963691146,0.4679055,110890.0,110880.0,0.27446882]
[1756963691351,0.4679055,110890.0,110880.0,0.42706882]
[1756963692793,0.4679055,110890.0,110880.0,0.42922882]
[1756963693623,0.04573549,110890.0,110880.0,0.42922882]
[1756963693952,0.4628055,110890.0,110880.0,0.43241882]
[1756963695528,0.04063549,110890.0,110880.0,0.43241882]
[1756963695886,0.003,110890.0,110880.0,0.85458883]
[1756963696302,0.003,110890.0,110880.0,0.93532154]
[1756963697095,0.003,110890.0,110880.0,0.96242407]
[1756963699920,0.003,110890.0,110880.0,1.38459408]
[1756963700373,0.003,110890.0,110880.0,1.39386545]
[1756963700710,0.003,110890.0,110880.0,1.41480427]
[1756963700916,0.00036127,110890.0,110880.0,1.41480427]
[1756963704508,0.00036127,110890.0,110880.0,1.26220427]
[1756963704717,0.00036127,110890.0,110880.0,1.41476427]
[1756963709523,0.00036127,110890.0,110880.0,0.41786425]
[1756963709733,0.00036127,110890.0,110880.0,1.4054929]
[1756963711032,4.462e-05,110890.0,110880.0,1.32476019]
[1756963711774,4.462e-05,110890.0,110880.0,1.38399809]
[1756963712157,4.462e-05,110890.0,110880.0,1.64733898]
[1756963712366,4.462e-05,110890.0,110880.0,2.4218735]
[1756963712772,4.462e-05,110890.0,110880.0,2.8218735]
[1756963712971,4.462e-05,110890.0,110880.0,2.70853261]
[1756963713377,1e-08,110890.0,110880.0,2.30853261]
[1756963713851,1e-08,110890.0,110880.0,2.70853261]
[1756963714052,0.49232573,110930.0,110920.0,0.18031013]
[1756963714261,0.06297549,110930.0,110920.0,0.49406612]
[1756963714467,0.4851455,110930.0,110920.0,0.49406612]
[1756963714674,0.06592549,110930.0,110920.0,0.49406612]
[1756963714878,0.4880955,110930.0,110920.0,0.49406612]
[1756963715349,0.4880955,110930.0,110920.0,0.49453837]
[1756963715699,0.48794429,110930.0,110920.0,0.49453837]
[1756963716100,0.06577428,110930.0,110920.0,0.49453837]
[1756963716542,0.06577428,110930.0,110920.0,0.49553837]
[1756963717461,0.06777428,110930.0,110920.0,0.49653837]
[1756963717821,0.00691,110930.0,110920.0,0.92086838]
[1756963718047,0.00396,110930.0,110920.0,0.92086838]
[1756963718790,0.002,110930.0,110920.0,0.92086838]
[1756963718987,0.002,110930.0,110920.0,1.34622839]
[1756963719179,0.002,110930.0,110920.0,0.9511511]
[1756963719584,0.002,110930.0,110920.0,1.37332111]
[1756963719787,0.002,110930.0,110920.0,1.39425993]
[1756963720351,0.002,110930.0,110920.0,1.39421993]
[1756963720821,0.002,110930.0,110920.0,0.97204992]
[1756963721104,0.002,110930.0,110920.0,0.98094263]
[1756963721468,0.002,110930.0,110920.0,1.40311264]
[1756963723557,0.002,110930.0,110920.0,1.40414814]
[1756963728804,0.002,110930.0,110920.0,1.4443726]
[1756963729983,0.002,110930.0,110920.0,1.2918926]
[1756963730385,0.002,110930.0,110920.0,1.4443326]
[1756963730588,0.002,110930.0,110920.0,1.2918926]
[1756963730908,0.002,110930.0,110920.0,1.4443326]
[1756963732613,0.002,110930.0,110920.0,0.59999258]
[1756963732814,0.002,110930.0,110920.0,1.4443326]
[1756963733771,0.002,110930.0,110920.0,1.4433326]
[1756963734183,0.002,110930.0,110920.0,1.4443326]
[1756963734832,0.002,110930.0,110920.0,1.40410814]
[1756963735031,0.0032,110940.0,110930.0,0.20123269]
[1756963735229,0.0032,110940.0,110930.0,0.86771869]
[1756963735437,0.00523,110940.0,110930.0,0.86771869]
[1756963735724,0.00523,110940.0,110930.0,1.03480395]
[1756963736670,0.00523,110940.0,110930.0,1.03681395]
[1756963736877,0.001,110940.0,110930.0,1.03681395]
[1756963737078,0.001,110940.0,110930.0,1.03979395]
[1756963737280,0.003,110940.0,110930.0,1.04079395]
[1756963737726,0.003,110940.0,110930.0,1.09079395]
[1756963738040,0.003,110940.0,110930.0,0.93839395]
[1756963738240,0.003,110940.0,110930.0,1.09079395]
[1756963738663,0.0002,110950.0,110940.0,0.20121644]
[1756963739008,0.0002,110950.0,110940.0,1.0076989]
[1756963739128,0.00223,110950.0,110940.0,1.0097089]
[1756963739354,0.00223,110950.0,110940.0,1.03679331]
[1756963740129,0.00323,110950.0,110940.0,0.32221684]
[1756963740325,0.00643,110950.0,110940.0,0.47461684]
[1756963740762,0.00743,110950.0,110940.0,0.47761684]
[1756963741136,0.00743,110950.0,110940.0,0.47962684]
[1756963741335,0.00423,110950.0,110940.0,1.04179331]
[1756963741578,0.0022,110950.0,110940.0,1.04477331]
[1756963742458,0.0022,110950.0,110940.0,1.04179331]
[1756963743067,0.00743,110950.0,110940.0,0.32722684]
[1756963743282,0.00743,110950.0,110940.0,0.47962684]
[1756963743503,0.00423,110950.0,110940.0,0.47962684]
[1756963743765,0.00743,110950.0,110940.0,0.47962684]
[1756963744180,0.00423,110950.0,110940.0,1.04179331]
[1756963745460,0.00423,110950.0,110940.0,1.58477331]
[1756963745461,1e-08,110950.0,110940.0,1.58477331]
[1756963745700,0.0002,110970.0,110960.0,0.18024513]
[1756963745903,0.02376,110970.0,110960.0,0.49380112]
[1756963746108,0.02579,110970.0,110960.0,0.34144112]
[1756963746317,0.62879196,110970.0,110960.0,0.52088426]
[1756963746569,0.62879196,110970.0,110960.0,0.49380112]
[1756963747026,0.62879196,110970.0,110960.0,0.49427337]
[1756963747246,0.24685438,110970.0,110960.0,0.49427337]
[1756963747460,0.24885438,110970.0,110960.0,0.49527337]
[1756963747671,0.63079196,110970.0,110960.0,0.49527337]
[1756963749616,0.86397621,110970.0,110960.0,0.16266824]
[1756963749830,0.86397621,110970.0,110960.0,0.31502824]
[1756963750066,0.81102085,110970.0,110960.0,0.49527337]
[1756963750294,0.81102085,110970.0,110960.0,0.31502824]
[1756963750733,0.81102085,110970.0,110960.0,0.49527337]
[1756963751370,0.24885438,110970.0,110960.0,0.49527337]
[1756963751590,0.06862549,110970.0,110960.0,0.49527337]
[1756963751799,0.63079196,110970.0,110960.0,0.49527337]
[1756963754858,0.63079196,110970.0,110960.0,0.34291337]
[1756963755087,0.63079196,110970.0,110960.0,0.49523337]
[1756963755300,0.63079196,110970.0,110960.0,0.34291337]
[1756963755532,0.63079196,110970.0,110960.0,0.49523337]
[1756963758980,0.63079196,110970.0,110960.0,0.53486675]
[1756963762384,0.06862549,110970.0,110960.0,0.53486675]
[1756963762591,0.63079196,110970.0,110960.0,0.53486675]
[1756963762791,0.60723196,110970.0,110960.0,0.53699675]
[1756963763430,0.56959647,110970.0,110960.0,0.53699675]
[1756963763628,0.60723196,110970.0,110960.0,0.53699675]
[1756963764747,0.56959647,110970.0,110960.0,0.53699675]
[1756963764951,0.60723196,110970.0,110960.0,0.53699675]
[1756963765597,0.04506549,110970.0,110960.0,0.53699675]
[1756963765748,0.60723196,110970.0,110960.0,0.53699675]
[1756963766729,0.60723196,110970.0,110960.0,0.38467675]
[1756963766914,0.60723196,110970.0,110960.0,0.53486675]
[1756963768105,0.04506549,110970.0,110960.0,0.53486675]
[1756963768321,0.60723196,110970.0,110960.0,0.53482675]
[1756963768724,0.60723196,110970.0,110960.0,0.38254675]
[1756963768927,0.60723196,110970.0,110960.0,0.53482675]
[1756963769131,1.71317732,110970.0,110960.0,0.00147225]
[1756963769328,1.71317732,110970.0,110960.0,0.15375225]
[1756963769686,1.15101085,110970.0,110960.0,0.15375225]
[1756963769814,0.58884438,110970.0,110960.0,0.15375225]
[1756963770015,1.15101085,110970.0,110960.0,0.15375225]
[1756963770225,0.58884438,110970.0,110960.0,0.15375225]
[1756963770441,1.15101085,110970.0,110960.0,0.15375225]
[1756963770824,1.15101085,110970.0,110960.0,0.33625044]
[1756963771036,1.15101085,110970.0,110960.0,0.33399738]
[1756963771934,1.15101085,110970.0,110960.0,0.15375225]
[1756963772328,1.15101085,110970.0,110960.0,0.33399738]
[1756963775652,0.94723196,110970.0,110960.0,0.42804337]
[1756963775888,1.12719085,110970.0,110960.0,0.42591337]
[1756963776352,1.12719085,110970.0,110960.0,0.09338824]
[1756963776597,1.12719085,110970.0,110960.0,0.42591337]
[1756963780513,0.56502438,110970.0,110960.0,0.42591337]
[1756963780699,1.12719085,110970.0,110960.0,0.42591337]
[1756963781228,0.03983549,110970.0,110960.0,0.43109337]
[1756963781766,0.0022,110970.0,110960.0,0.43109337]
[1756963782925,0.03983549,110970.0,110960.0,0.43109337]
[1756963783411,0.03983549,110970.0,110960.0,0.44000825]
[1756963783998,0.03983549,110970.0,110960.0,0.43109337]
[1756963785739,0.60200196,110970.0,110960.0,0.27881337]
[1756963785964,0.60200196,110970.0,110960.0,0.43109337]
[1756963787277,0.60200196,110970.0,110960.0,0.27881337]
[1756963787458,0.60200196,110970.0,110960.0,0.42797337]
[1756963788870,0.60200196,110970.0,110960.0,0.49725337]
[1756963789841,0.60406196,110970.0,110960.0,0.49725337]
[1756963790499,0.60704196,110970.0,110960.0,0.49515337]
[1756963792130,0.04487549,110970.0,110960.0,0.49515337]
[1756963792347,0.60704196,110970.0,110960.0,0.49515337]
[1756963792564,0.03983549,110970.0,110960.0,0.49721337]
[1756963792781,0.60200196,110970.0,110960.0,0.49721337]
[1756963793008,0.60200196,110970.0,110960.0,0.50033337]
[1756963793397,0.60200196,110970.0,110960.0,0.49721337]
[1756963793807,0.03983549,110970.0,110960.0,0.49721337]
[1756963794004,0.60406196,110970.0,110960.0,0.49721337]
[1756963795511,0.03983549,110970.0,110960.0,0.50033337]
[1756963796612,0.60200196,110970.0,110960.0,0.50033337]
[1756963797316,0.59420196,110970.0,110960.0,0.50033337]
[1756963797548,0.45355858,110970.0,110960.0,0.50033337]
[1756963800273,0.03203549,110970.0,110960.0,0.50033337]
[1756963800480,0.42470309,110980.0,110970.0,0.18022889]
[1756963800481,0.0002,110980.0,110970.0,0.18022889]
[1756963800683,0.45375858,110980.0,110970.0,0.27732488]
[1756963801849,0.45475858,110980.0,110970.0,0.27732488]
[1756963802085,0.42272309,110980.0,110970.0,0.27732488]
[1756963802495,0.88132167,110980.0,110970.0,0.42438488]
[1756963803122,0.45681858,110980.0,110970.0,0.42744488]
[1756963803296,0.45881858,110980.0,110970.0,0.42744488]
[1756963803871,0.42472309,110980.0,110970.0,0.43056488]
[1756963804291,0.45675858,110980.0,110970.0,0.43056488]
[1756963804769,0.45881858,110980.0,110970.0,0.42744488]
[1756963804993,0.46179858,110980.0,110970.0,0.27314488]
[1756963805197,0.88332167,110980.0,110970.0,0.42534488]
[1756963811539,0.04027549,110980.0,110970.0,0.42534488]
[1756963811742,0.03523549,110980.0,110970.0,0.43061488]
[1756963811941,0.0032,110980.0,110970.0,0.43061488]
[1756963812151,0.00042114,110980.0,110970.0,0.954069]
[1756963812352,0.00042114,110980.0,110970.0,0.2993537]
[1756963812556,0.00042114,110980.0,110970.0,0.47863129]
[1756963812811,0.42194423,110980.0,110970.0,0.55967584]
[1756963812984,0.00042114,110980.0,110970.0,0.47763129]
[1756963813197,0.46260665,111000.0,110990.0,0.18019641]
[1756963813418,0.64483732,111000.0,110990.0,0.24411599]
[1756963813805,0.64799732,111000.0,110990.0,0.24411599]
[1756963814525,1.06952041,111000.0,110990.0,0.24411599]
[1756963814928,1.94749949,111000.0,110990.0,0.09191599]
[1756963815149,1.8555835,111000.0,110990.0,0.24411599]
[1756963815509,0.59101423,111000.0,110990.0,0.24411599]
[1756963815729,1.43406041,111000.0,110990.0,0.09191599]
[1756963815930,1.42521234,111000.0,110990.0,0.24407599]
[1756963816319,1.42521234,111000.0,110990.0,0.24607599]
[1756963816763,1.42621234,111000.0,110990.0,0.24807599]
[1756963818941,0.58316616,111000.0,110990.0,0.4282724]
[1756963819160,0.40298549,111000.0,110990.0,0.4303224]
[1756963819355,0.45475858,111000.0,110990.0,0.4335424]
[1756963819563,0.42272309,111000.0,110990.0,0.4335424]
[1756963819767,0.84424618,111000.0,110990.0,0.4335424]
[1756963819968,0.0012,111000.0,110990.0,0.4335424]
[1756963820169,0.88149167,111000.0,110990.0,0.2781624]
[1756963820327,1.06167185,111000.0,110990.0,0.4282724]
[1756963821432,0.21862567,111000.0,110990.0,0.4282724]
[1756963821631,1.06167185,111000.0,110990.0,0.4282724]
[1756963821832,0.88149167,111000.0,110990.0,0.4282724]
[1756963822216,0.88149167,111000.0,110990.0,0.2761124]
[1756963822418,0.88149167,111000.0,110990.0,0.4282724]
[1756963822827,0.88149167,111000.0,110990.0,0.2761124]
[1756963823024,0.88149167,111000.0,110990.0,0.4282724]
[1756963823271,0.88149167,111000.0,110990.0,0.4303224]
[1756963823592,0.03323549,111000.0,110990.0,0.4335424]
[1756963823799,0.87628167,111000.0,110990.0,0.4335424]
[1756963824123,0.0012,111000.0,110990.0,0.4335424]
[1756963824340,0.45475858,111000.0,110990.0,0.4335424]
[1756963824789,0.42272309,111000.0,110990.0,0.4335424]
[1756963825012,0.45475858,111000.0,110990.0,0.4335424]
[1756963826982,0.42272309,111000.0,110990.0,0.4335424]
[1756963827156,0.45475858,111000.0,110990.0,0.4335424]
[1756963828762,0.0012,111000.0,110990.0,0.4335424]
[1756963828940,0.0012,111000.0,110990.0,0.85506549]
[1756963829216,0.0012,111000.0,110990.0,0.93608663]
[1756963829442,0.0012,111000.0,110990.0,0.99292586]
[1756963829658,0.00016176,111000.0,110990.0,0.99292586]
[1756963830332,0.0002,111010.0,111000.0,0.18018018]
[1756963830569,0.0002,111010.0,111000.0,0.78625499]
[1756963830779,0.0002,111010.0,111000.0,0.56169409]
[1756963831000,0.42172309,111010.0,111000.0,0.43876442]
[1756963831207,0.84845618,111010.0,111000.0,0.44935586]
[1756963831387,0.84845618,111010.0,111000.0,0.49349617]
[1756963831630,0.84845618,111010.0,111000.0,0.31374824]
[1756963831631,1.06065561,111010.0,111000.0,0.31374824]
[1756963831843,0.24214943,111010.0,111000.0,0.16162824]
[1756963832054,1.08519561,111010.0,111000.0,0.31374824]
[1756963832664,1.08519561,111010.0,111000.0,0.49392842]
[1756963832884,1.08619561,111010.0,111000.0,0.49692842]
[1756963833082,1.08719561,111010.0,111000.0,0.50092842]
[1756963834459,1.08619561,111010.0,111000.0,0.49692842]
[1756963834705,1.08619561,111010.0,111000.0,0.49392842]
[1756963834911,0.90503167,111010.0,111000.0,0.49592842]
[1756963835110,0.90603167,111010.0,111000.0,0.49592842]
[1756963835294,1.08619561,111010.0,111000.0,0.49592842]
[1756963836155,0.45996858,111010.0,111000.0,0.49592842]
[1756963836385,0.45996858,111010.0,111000.0,0.49797842]
[1756963836879,0.45996858,111010.0,111000.0,0.50119842]
[1756963836880,0.42272309,111010.0,111000.0,0.50119842]
[1756963838224,0.42272309,111010.0,111000.0,0.34907842]
[1756963838426,0.45996858,111010.0,111000.0,0.49592842]
[1756963838873,0.45996858,111010.0,111000.0,0.49797842]
[1756963839256,0.45680858,111010.0,111000.0,0.49797842]
[1756963841474,0.03528549,111010.0,111000.0,0.49797842]
[1756963841686,0.45680858,111010.0,111000.0,0.49797842]
[1756963842110,0.45475858,111010.0,111000.0,0.50106842]
[1756963842819,0.42272309,111010.0,111000.0,0.50106842]
[1756963843871,0.42272309,111010.0,111000.0,0.34585842]
[1756963844108,0.45679858,111010.0,111000.0,0.49797842]
[1756963845415,0.45993858,111010.0,111000.0,0.34380842]
[1756963845620,0.45993858,111010.0,111000.0,0.49592842]
[1756963846203,0.45993858,111010.0,111000.0,0.49794842]
[1756963851262,0.45993858,111010.0,111000.0,0.34582842]
[1756963851506,0.45993858,111010.0,111000.0,0.49794842]
[1756963851631,0.45993858,111010.0,111000.0,0.34582842]
[1756963851835,0.45993858,111010.0,111000.0,0.49794842]
[1756963852041,0.45993858,111010.0,111000.0,0.34582842]
[1756963852242,0.45993858,111010.0,111000.0,0.49592842]
[1756963852447,1.06162561,111010.0,111000.0,0.16362824]
[1756963852658,1.08519561,111010.0,111000.0,0.07171225]
[1756963852855,0.24214943,111010.0,111000.0,0.22383225]
[1756963853068,1.8467187,111010.0,111000.0,0.00247225]
[1756963853275,1.8467187,111010.0,111000.0,0.15459225]
[1756963854174,1.9988387,111010.0,111000.0,0.00247225]
[1756963854373,2.09075469,111010.0,111000.0,0.00247225]
[1756963855487,2.09099469,111010.0,111000.0,0.00247225]
[1756963855688,1.9990787,111010.0,111000.0,0.00247225]
[1756963856110,1.57655561,111010.0,111000.0,0.00047225]
[1756963856541,1.42519561,111010.0,111000.0,0.00147225]
[1756963857444,1.42619561,111010.0,111000.0,0.00147225]
[1756963858371,1.42619561,111010.0,111000.0,0.15391225]
[1756963858573,1.5181116,111010.0,111000.0,0.00147225]
[1756963858847,1.5181116,111010.0,111000.0,0.15431225]
[1756963859452,1.5181116,111010.0,111000.0,0.00147225]
[1756963859655,1.23694964,111010.0,111000.0,0.15431225]
[1756963860992,1.14503365,111010.0,111000.0,0.15431225]
[1756963861202,1.11832365,111010.0,111000.0,0.15633225]
[1756963862003,1.12146365,111010.0,111000.0,0.15633225]
[1756963862209,1.11628365,111010.0,111000.0,0.15942225]
[1756963862368,1.11628365,111010.0,111000.0,0.15633225]
[1756963862369,1.12146365,111010.0,111000.0,0.15633225]
[1756963862563,1.12146365,111010.0,111000.0,0.15431225]
[1756963863459,1.12146365,111010.0,111000.0,0.15427225]
[1756963866246,1.21337964,111010.0,111000.0,0.15435225]
[1756963866480,1.79883386,111010.0,111000.0,0.00147225]
[1756963866700,1.79883386,111010.0,111000.0,0.15435225]
[1756963867108,1.23694964,111010.0,111000.0,0.15435225]
[1756963869391,1.79883386,111010.0,111000.0,0.00147225]
[1756963869682,1.79883386,111010.0,111000.0,0.15431225]
[1756963870868,1.79883386,111010.0,111000.0,0.15427225]
[1756963871563,1.79883386,111010.0,111000.0,0.00147225]
[1756963871737,1.79883386,111010.0,111000.0,0.15427225]
[1756963871950,1.79883386,111010.0,111000.0,0.00147225]
[1756963872156,1.79883386,111010.0,111000.0,0.15427225]
[1756963872362,1.79883386,111010.0,111000.0,0.00147225]
[1756963873389,1.95159386,111010.0,111000.0,0.00147225]
[1756963873792,2.04350985,111010.0,111000.0,0.00147225]
[1756963874257,0.91974141,111010.0,111000.0,0.00147225]
[1756963874587,2.04350985,111010.0,111000.0,0.00147225]
[1756963875224,2.06444867,111010.0,111000.0,0.00147225]
[1756963875428,0.55224814,110980.0,110970.0,0.22630631]
[1756963875642,1.14224069,110980.0,110970.0,0.07401969]
[1756963875852,1.14742069,110980.0,110970.0,0.22673969]
[1756963876260,1.14742069,110980.0,110970.0,0.15319338]
[1756963876419,1.14742069,110980.0,110970.0,0.00047338]
[1756963876974,1.14742069,110980.0,110970.0,0.00247338]
[1756963877558,1.14742069,110980.0,110970.0,0.00047338]
[1756963878171,1.15765272,110980.0,110970.0,0.00447338]
[1756963878599,1.89566694,110980.0,110970.0,0.00147338]
[1756963879020,1.89562694,110980.0,110970.0,0.00147338]
[1756963879223,1.33474272,110980.0,110970.0,0.00247338]
[1756963879429,1.89662694,110980.0,110970.0,0.00147338]
[1756963880260,1.98854293,110980.0,110970.0,0.00147338]
[1756963880460,1.98854293,110980.0,110970.0,0.00047338]
[1756963880660,2.03557467,110980.0,110970.0,0.00047338]
[1756963880992,2.03657467,110980.0,110970.0,0.00247338]
[1756963881387,2.10485467,110980.0,110970.0,0.00147338]
[1756963881834,2.10685467,110980.0,110970.0,0.00247338]
[1756963882238,2.10485467,110980.0,110970.0,0.00147338]
[1756963882431,2.10485467,110980.0,110970.0,1e-08]
[1756963883057,0.55231311,110940.0,110930.0,0.11510631]
[1756963883422,0.142575,110940.0,110930.0,0.11854834]
[1756963883555,0.29447495,110940.0,110930.0,0.46055834]
[1756963884413,0.29447495,110940.0,110930.0,0.38901203]
[1756963885025,0.29547495,110940.0,110930.0,0.39201203]
[1756963886429,0.29547495,110940.0,110930.0,0.38904203]
[1756963886625,0.33378191,110940.0,110930.0,0.34547203]
[1756963886852,0.33378191,110940.0,110930.0,0.49807203]
[1756963887408,0.33378191,110940.0,110930.0,0.00547203]
[1756963887582,0.30065495,110940.0,110930.0,0.00748203]
[1756963889401,0.30065495,110940.0,110930.0,0.00547203]
[1756963889582,0.30065495,110940.0,110930.0,0.15803203]
[1756963891449,0.30065495,110940.0,110930.0,0.16004203]
[1756963891675,0.52341762,110940.0,110930.0,0.16004203]
[1756963891796,1.08834184,110940.0,110930.0,0.16004203]
[1756963892463,1.18025783,110940.0,110930.0,0.16004203]
[1756963892874,1.18025783,110940.0,110930.0,0.00547203]
[1756963895185,1.18025783,110940.0,110930.0,0.00247203]
[1756963895186,1.17925783,110940.0,110930.0,0.00247203]
[1756963895395,0.61737361,110940.0,110930.0,0.00248203]
[1756963895693,1.08834184,110940.0,110930.0,0.00548203]
[1756963895894,1.08734184,110940.0,110930.0,0.00348203]
[1756963896079,1.08430184,110940.0,110930.0,0.00348203]
[1756963896283,1.08834184,110940.0,110930.0,0.00348203]
[1756963896840,1.08934184,110940.0,110930.0,0.00147203]
[1756963897841,1.18125783,110940.0,110930.0,0.00147203]
[1756963898058,1.08934184,110940.0,110930.0,0.00147203]
[1756963900187,0.52745762,110940.0,110930.0,0.00147203]
[1756963900402,1.08934184,110940.0,110930.0,0.00147203]
[1756963901361,1.24190184,110940.0,110930.0,0.00147203]
[1756963901997,0.67997762,110940.0,110930.0,0.00147203]